bitfinex/quotes_BTCUSD_20260104
["timestamp","ask_amount","ask_price","bid_price","bid_amount"]
[1767484990635,0.05505577,90817.0,90815.0,0.05282625]
[1767484990818,0.06606986,90813.0,90807.0,0.02216]
[1767484991019,0.06606986,90813.0,90791.0,0.22028544]
[1767484991020,0.0110126,90805.0,90793.0,0.13241087]
[1767484991232,0.01101273,90804.0,90796.0,0.05935735]
[1767484991593,0.01607659,90804.0,90802.0,0.04834365]
[1767484991760,0.02216,90810.0,90802.0,0.06392001]
[1767484992004,0.01101212,90809.0,90802.0,0.06392001]
[1767484992322,0.01101236,90807.0,90802.0,0.05290704]
[1767484992606,0.01101236,90807.0,90802.0,0.05190804]
[1767484992817,0.01101248,90806.0,90802.0,0.05190804]
[1767484992951,0.0110126,90805.0,90802.0,0.05190804]
[1767484993488,0.0110126,90805.0,90791.0,0.0110143]
[1767484993489,0.01101357,90797.0,90791.0,0.0110143]
[1767484993688,0.01101345,90798.0,90791.0,0.0110143]
[1767484993890,0.0110137,90796.0,90793.0,0.08241087]
[1767484994416,0.01101333,90799.0,90789.0,0.01101455]
[1767484994417,0.01101333,90799.0,90792.0,0.01101418]
[1767484994618,0.01101357,90797.0,90792.0,0.01101418]
[1767484994814,0.01101333,90799.0,90792.0,0.05935783]
[1767484994976,0.01101333,90799.0,90794.0,0.01101394]
[1767484995407,0.01101333,90799.0,90792.0,0.05935783]
[1767484995408,0.01101321,90800.0,90792.0,0.05935783]
[1767484995654,0.01101333,90799.0,90794.0,0.01101394]
[1767484995864,0.01101345,90798.0,90792.0,0.04834365]
[1767484996065,0.01101333,90799.0,90793.0,0.05935771]
[1767484996344,0.01101333,90799.0,90794.0,0.04834365]
[1767484996711,0.01101345,90798.0,90794.0,0.04834365]
[1767484996931,0.02212,90798.0,90794.0,0.05935759]
[1767484997323,0.02212,90798.0,90794.0,0.04834365]
[1767484997493,0.03313345,90798.0,90794.0,0.04834365]
[1767484997692,0.01101357,90797.0,90794.0,0.04834365]
[1767484998094,0.0990935,90797.0,90794.0,0.04834365]
[1767484998313,0.08807993,90797.0,90794.0,0.04834365]
[1767484998521,0.0990935,90797.0,90794.0,0.04834365]
[1767484998723,0.08807993,90797.0,90794.0,0.04834365]
[1767484999550,0.0990935,90797.0,90794.0,0.04834365]
[1767485000342,0.01101491,90786.0,90783.0,0.04834365]
[1767485000545,0.01101467,90788.0,90783.0,0.04834365]
[1767485000725,0.01101491,90786.0,90779.0,0.01101576]
[1767485000909,0.03313479,90787.0,90780.0,0.01127414]
[1767485001114,0.01101491,90786.0,90780.0,0.0002585]
[1767485001337,0.03313479,90787.0,90780.0,0.05961779]
[1767485001793,0.03313479,90787.0,90781.0,0.01101552]
[1767485002066,0.01101491,90786.0,90781.0,0.01101552]
[1767485002264,0.03313479,90787.0,90782.0,0.01101539]
[1767485002466,0.000999,90782.0,90780.0,0.01127414]
[1767485002777,0.19718216,90779.0,90773.0,0.05936014]
[1767485003067,0.19718216,90779.0,90776.0,0.06019633]
[1767485003311,0.02212,90778.0,90776.0,0.04918021]
[1767485004259,0.0550711,90792.0,90779.0,0.01101576]
[1767485004479,0.04404,90807.0,90800.0,0.01101321]
[1767485004714,0.02212,90806.0,90802.0,0.01101297]
[1767485004917,0.02212,90806.0,90803.0,0.01101285]
[1767485005120,0.0001514,90812.0,90806.0,0.01101248]
[1767485005121,0.01116316,90812.0,90806.0,0.01101248]
[1767485005441,0.03313188,90811.0,90804.0,0.01101273]
[1767485005638,0.033132,90810.0,90804.0,0.01101273]
[1767485005803,0.01101212,90809.0,90803.0,0.01101285]
[1767485005998,0.01101212,90809.0,90804.0,0.01101273]
[1767485006220,0.19728916,90809.0,90805.0,0.0110126]
[1767485006623,0.19728916,90809.0,90804.0,0.01101273]
[1767485007349,0.02212,90808.0,90805.0,0.0110126]
[1767485007788,0.19728916,90809.0,90806.0,0.01101248]
[1767485007984,0.06606781,90816.0,90813.0,0.06606931]
[1767485007985,0.04404,90816.0,90813.0,0.06606931]
[1767485008132,0.01101079,90820.0,90813.0,0.06606931]
[1767485008330,0.02212,90819.0,90815.0,0.01101139]
[1767485008703,0.02212,90819.0,90813.0,0.06606931]
[1767485008704,0.02212,90819.0,90814.0,0.01101151]
[1767485008834,1e-08,90826.0,90822.0,0.01101054]
[1767485009177,0.02212,90825.0,90821.0,0.04834365]
[1767485009323,0.000999,90821.0,90819.0,0.0002585]
[1767485009526,0.01101103,90818.0,90812.0,0.01101176]
[1767485009747,0.05505445,90820.0,90819.0,0.04834365]
[1767485009949,0.01101115,90817.0,90807.0,0.01101236]
[1767485010163,0.01101127,90816.0,90812.0,0.04702389]
[1767485010342,0.01101139,90815.0,90812.0,0.04702389]
[1767485010870,0.01101127,90816.0,90812.0,0.04702389]
[1767485011256,0.01101139,90815.0,90812.0,0.04702389]
[1767485011544,0.01101127,90816.0,90812.0,0.04702389]
[1767485011719,0.01101091,90819.0,90812.0,0.05803565]
[1767485011921,0.01101007,90826.0,90819.0,0.01101091]
[1767485012122,0.000999,90819.0,90817.0,0.01101115]
[1767485012452,0.01,90819.0,90815.0,0.01101139]
[1767485012651,0.01,90819.0,90815.0,0.06606837]
[1767485013049,0.01101103,90818.0,90810.0,0.11385833]
[1767485013193,0.01,90819.0,90808.0,0.05506122]
[1767485013194,0.01101115,90817.0,90808.0,0.05506122]
[1767485013592,0.01101115,90817.0,90810.0,0.011012]
[1767485013796,0.06606813,90816.0,90807.0,0.000107]
[1767485013996,0.04632605,90805.0,90800.0,0.01101321]
[1767485014197,0.00010702,90805.0,90801.0,0.05506526]
[1767485014396,0.00010702,90805.0,90799.0,0.06607983]
[1767485014663,0.04632605,90853.0,90838.0,0.13241087]
[1767485014798,0.01100667,90854.0,90851.0,0.06878741]
[1767485015019,0.01100618,90858.0,90851.0,0.0587422]
[1767485015204,0.04632605,90855.0,90851.0,0.05708058]
[1767485015556,0.04632605,90855.0,90838.0,0.10727808]
[1767485015557,0.01100715,90850.0,90841.0,0.05504062]
[1767485015784,0.00078492,90841.0,90838.0,0.11828668]
[1767485015936,0.04632605,90852.0,90845.0,0.01100776]
[1767485016137,0.01100715,90850.0,90843.0,0.05503987]
[1767485016305,0.01100739,90848.0,90841.0,0.01090126]
[1767485016505,0.01100727,90849.0,90843.0,0.011008]
[1767485016955,0.06604373,90849.0,90842.0,0.01100812]
[1767485017173,0.01100727,90849.0,90843.0,0.011008]
[1767485017347,0.01100739,90848.0,90843.0,0.011008]
[1767485018359,0.01100751,90847.0,90841.0,0.01090126]
[1767485018563,0.05503521,90851.0,90804.0,0.13241087]
[1767485018564,0.01100872,90837.0,90827.0,0.01100994]
[1767485018813,0.01100909,90834.0,90829.0,0.01100969]
[1767485018966,0.01100897,90835.0,90828.0,0.01100982]
[1767485019171,0.01100909,90834.0,90828.0,0.01100982]
[1767485019350,0.01100921,90833.0,90829.0,0.13241087]
[1767485019557,0.01100909,90834.0,90829.0,0.13241087]
[1767485019759,0.0110086,90838.0,90834.0,0.000999]
[1767485019946,0.01100872,90837.0,90834.0,0.000999]
[1767485020141,0.03316836,90840.0,90834.0,0.01100909]
[1767485020783,0.02216,90840.0,90836.0,0.01100885]
[1767485021098,0.02216,90840.0,90839.0,0.00050217]
[1767485021300,0.01100751,90847.0,90841.0,0.01100824]
[1767485021503,0.02216,90850.0,90843.0,0.13241087]
[1767485021702,0.03316715,90850.0,90843.0,0.14341887]
[1767485022086,0.01100739,90848.0,90843.0,0.13241087]
[1767485022288,0.01100727,90849.0,90843.0,0.13241087]
[1767485022490,0.02216,90850.0,90845.0,0.01100776]
[1767485022808,0.03316715,90850.0,90845.0,0.01100776]
[1767485022993,0.01100751,90847.0,90843.0,0.13241087]
[1767485023190,0.01100763,90846.0,90839.0,0.01100848]
[1767485023415,0.05232792,90857.0,90850.0,0.01100715]
[1767485023746,0.04132162,90857.0,90851.0,0.06604201]
[1767485023948,0.04132162,90857.0,90853.0,0.01100679]
[1767485024091,0.04032262,90857.0,90854.0,0.01100667]
[1767485024633,0.04032262,90857.0,90847.0,0.10282391]
[1767485024634,0.0110063,90857.0,90847.0,0.10282391]
[1767485024936,0.000999,90854.0,90852.0,0.04778632]
[1767485025108,0.01100654,90855.0,90852.0,0.04778632]
[1767485025292,0.02216,90859.0,90854.0,0.05879299]
[1767485025635,0.02216,90859.0,90856.0,0.01100642]
[1767485026332,0.0110057,90862.0,90856.0,0.01100642]
[1767485026582,0.0110057,90862.0,90855.0,0.01100654]
[1767485026788,0.010999,90856.0,90852.0,0.01100691]
[1767485026934,0.010999,90856.0,90853.0,0.01100679]
[1767485027134,0.010999,90856.0,90848.0,0.05503678]
[1767485027135,0.04632605,90855.0,90848.0,0.05503678]
[1767485027337,0.05503118,90858.0,90845.0,0.01100776]
[1767485027542,0.05503577,90850.0,90841.0,0.01100824]
[1767485027746,0.05503577,90850.0,90839.0,0.0587948]
[1767485027747,0.01100739,90848.0,90839.0,0.0587948]
[1767485027947,5.138e-05,90867.0,90864.0,0.06603236]
[1767485028108,1e-08,90873.0,90870.0,0.06602779]
[1767485028464,0.02216,90878.0,90873.0,0.01]
[1767485028665,0.001001,90874.0,90873.0,0.01]
[1767485029065,0.000901,90874.0,90873.0,0.009001]
[1767485029470,0.000901,90874.0,90870.0,0.01100473]
[1767485029675,0.02216,90873.0,90870.0,0.01100473]
[1767485029817,0.02216,90873.0,90868.0,0.01100497]
[1767485030025,0.02216,90873.0,90458.0,100.0]
[1767485030026,0.01100557,90863.0,90851.0,0.04778632]
[1767485030264,0.04722705,90874.0,90851.0,0.04778632]
[1767485030265,0.01100642,90856.0,90852.0,0.01100691]
[1767485030583,0.0110063,90857.0,90851.0,0.04789336]
[1767485030747,0.0110063,90857.0,90852.0,0.05879323]
[1767485030946,0.02052369,90862.0,90857.0,0.01]
[1767485031283,0.02216,90863.0,90859.0,0.01100606]
[1767485031435,0.02216,90863.0,90860.0,0.01100594]
[1767485032286,0.021261,90863.0,90860.0,0.06603546]
[1767485032490,0.01100461,90871.0,90866.0,0.01100521]
[1767485032783,0.05592266,90874.0,90866.0,0.01100521]
[1767485032784,0.01190524,90874.0,90868.0,0.01100497]
[1767485033083,0.01190524,90874.0,90870.0,0.01100473]
[1767485033084,0.02216,90873.0,90870.0,0.01100473]
[1767485033429,0.02216,90873.0,90869.0,0.01100485]
[1767485033936,0.000999,90869.0,90868.0,0.01100497]
[1767485034280,0.04248281,90879.0,90868.0,0.01100497]
[1767485034281,0.01100194,90893.0,90887.0,0.01100267]
[1767485034622,0.01100122,90899.0,90887.0,0.01100267]
[1767485034825,0.01100146,90897.0,90887.0,0.06601547]
[1767485035193,0.0429634,90890.0,90887.0,0.06601547]
[1767485035399,0.04322013,90890.0,90887.0,0.06601547]
[1767485036294,0.05464497,90901.0,90892.0,0.0550101]
[1767485036462,0.07680497,90901.0,90894.0,0.01100182]
[1767485036667,0.07680497,90901.0,90895.0,0.0110017]
[1767485036901,0.01,90895.0,90892.0,0.01100206]
[1767485037257,0.00078087,90900.0,90897.0,0.01100146]
[1767485037417,0.00078087,90900.0,90895.0,0.0120007]
[1767485037619,0.01178197,90900.0,90895.0,0.0110017]
[1767485037843,0.01100158,90896.0,90890.0,0.01100231]
[1767485038043,0.01100158,90896.0,90890.0,0.01135904]
[1767485038243,0.01100146,90897.0,90890.0,0.00035673]
[1767485038439,0.01100158,90896.0,90890.0,0.01135904]
[1767485038688,0.01100158,90896.0,90890.0,0.00035673]
[1767485038689,0.0110017,90895.0,90890.0,0.00035673]
[1767485039019,0.05732787,90894.0,90890.0,0.00035673]
[1767485039176,0.04632605,90894.0,90891.0,0.01100218]
[1767485039501,0.0110017,90895.0,90890.0,0.01135904]
[1767485040082,0.01100182,90894.0,90890.0,0.01135904]
[1767485040402,0.02216,90894.0,90891.0,0.01100218]
[1767485040561,0.02216,90894.0,90890.0,0.00035673]
[1767485040562,0.01100194,90893.0,90890.0,0.00035673]
[1767485040763,0.02216,90894.0,90890.0,0.01135904]
[1767485041004,0.02216,90894.0,90891.0,0.01100218]
[1767485041216,0.021161,90894.0,90892.0,0.05501034]
[1767485041414,0.021161,90894.0,90891.0,0.01100218]
[1767485041615,0.04828124,90900.0,90892.0,0.01100206]
[1767485041792,0.04750037,90898.0,90893.0,0.01100194]
[1767485041993,0.04750037,90896.0,90893.0,0.01100194]
[1767485042228,0.04750037,90896.0,90892.0,0.06601185]
[1767485042394,0.01100194,90893.0,90890.0,0.00035673]
[1767485042605,0.01100158,90896.0,90890.0,0.00035673]
[1767485042800,0.01100194,90893.0,90890.0,0.00035673]
[1767485043219,0.01100182,90894.0,90890.0,0.00035673]
[1767485043949,0.01100194,90893.0,90890.0,0.00035673]
[1767485044297,0.04750037,90887.0,90884.0,0.05501466]
[1767485044497,0.05850231,90893.0,90888.0,0.01100255]
[1767485044682,0.01100206,90892.0,90885.0,0.01100291]
[1767485045368,0.01100194,90893.0,90889.0,0.01100243]
[1767485045540,0.01100158,90896.0,90893.0,0.010999]
[1767485045701,0.01100134,90898.0,90893.0,0.01]
[1767485045887,0.01100134,90898.0,90893.0,0.02100194]
[1767485046082,0.02216,90897.0,90893.0,0.02100194]
[1767485046488,0.01100158,90896.0,90893.0,0.01]
[1767485046682,0.01100158,90896.0,90891.0,0.01100218]
[1767485046936,0.01100158,90896.0,90890.0,0.01100231]
[1767485047140,0.0110017,90895.0,90890.0,0.01100231]
[1767485047910,0.01100182,90894.0,90889.0,0.01100243]
[1767485048224,0.01100182,90894.0,90890.0,0.01100231]
[1767485048424,0.01100194,90893.0,90887.0,0.01100267]
[1767485048668,0.01100194,90893.0,90889.0,0.01100243]
[1767485049599,0.01100218,90891.0,90886.0,0.01100279]
[1767485050015,0.01100231,90890.0,90885.0,0.01100291]
[1767485050373,0.01100231,90890.0,90885.0,0.04436643]
[1767485050573,0.01100231,90890.0,90884.0,0.01100303]
[1767485050782,0.01100218,90891.0,90884.0,0.01100303]
[1767485050981,0.01100206,90892.0,90885.0,0.01100291]
[1767485051186,0.01100206,90892.0,90884.0,0.01100303]
[1767485051458,0.01100206,90892.0,90885.0,0.06601748]
[1767485051620,0.01100194,90893.0,90888.0,0.01100255]
[1767485051810,0.04750037,90892.0,90889.0,0.01100243]
[1767485052156,0.0110017,90895.0,90889.0,0.0471776]
[1767485052424,0.01100158,90896.0,90890.0,0.01100231]
[1767485052577,0.07716785,90897.0,90892.0,0.01100206]
[1767485052578,0.03316146,90897.0,90892.0,0.01100206]
[1767485052772,0.01100158,90896.0,90892.0,0.01100206]
[1767485052969,0.01100158,90896.0,90891.0,0.01100218]
[1767485053170,0.02216,90897.0,90892.0,0.01100206]
[1767485053413,0.02216,90897.0,90893.0,0.01090194]
[1767485053630,0.02216,90897.0,90892.0,0.05500974]
[1767485053826,0.02216,90897.0,90894.0,0.01100182]
[1767485054574,0.02216,90897.0,90894.0,0.06601088]
[1767485055293,0.02216,90897.0,90894.0,0.01100182]
[1767485056055,0.02216,90897.0,90894.0,0.11318849]
[1767485056260,0.02216,90897.0,90894.0,0.03506826]
[1767485056672,0.03316146,90897.0,90894.0,0.03506826]
[1767485056821,0.02216,90897.0,90894.0,0.03506826]
[1767485057023,0.02216,90897.0,90894.0,0.01100182]
[1767485057575,0.02216,90897.0,90894.0,0.05817942]
[1767485058334,0.02216,90897.0,90894.0,0.0471776]
[1767485058761,0.02216,90897.0,90894.0,0.05817942]
[1767485059455,0.02216,90897.0,90894.0,0.0471776]
[1767485059988,1e-08,90903.0,90902.0,0.10218189]
[1767485060186,0.02212,90903.0,90902.0,0.10213669]
[1767485060421,0.02212,90903.0,90902.0,0.05495909]
[1767485060607,0.02212,90903.0,90901.0,0.01100097]
[1767485060962,0.02212,90903.0,90899.0,0.01100122]
[1767485061183,0.021021,90903.0,90900.0,0.0110011]
[1767485062124,0.021021,90903.0,90900.0,0.11318366]
[1767485062529,0.03422935,90902.0,90900.0,0.03177671]
[1767485062694,0.021021,90903.0,90900.0,0.0110011]
[1767485063115,0.021021,90903.0,90900.0,0.0581787]
[1767485063318,0.02096477,90903.0,90900.0,0.0581787]
[1767485063750,0.02096477,90903.0,90900.0,0.0471776]
[1767485063958,0.02096477,90903.0,90900.0,0.0461786]
[1767485064446,0.03190928,90903.0,90900.0,0.0461786]
[1767485065026,0.01167456,90903.0,90900.0,0.0571797]
[1767485065326,0.01167456,90903.0,90898.0,0.01100134]
[1767485065327,0.02212,90907.0,90905.0,0.01100049]
[1767485065661,0.02212,90907.0,90905.0,0.01090049]
[1767485065864,0.02212,90907.0,90904.0,0.01100061]
[1767485066009,0.03312025,90907.0,90902.0,0.01100085]
[1767485066451,0.03312025,90907.0,90903.0,0.01100073]
[1767485066653,0.02212,90907.0,90903.0,0.01100073]
[1767485066883,0.03312025,90907.0,90902.0,0.01100085]
[1767485067072,0.03312025,90907.0,90903.0,0.01100073]
[1767485067407,0.01100037,90906.0,90902.0,0.01100085]
[1767485067587,0.05850086,90905.0,90898.0,0.00955941]
[1767485067785,0.04750037,90905.0,90901.0,0.01100097]
[1767485068398,0.04750037,90905.0,90902.0,0.01100085]
[1767485068744,0.05850086,90905.0,90900.0,0.0110011]
[1767485069366,0.01100061,90904.0,90898.0,0.05500631]
[1767485069577,0.01100073,90903.0,90898.0,0.01100134]
[1767485069974,0.01100085,90902.0,90898.0,0.01100134]
[1767485070305,0.01100073,90903.0,90898.0,0.01100134]
[1767485070683,0.0110011,90900.0,90895.0,0.04517823]
[1767485070851,0.00644413,90900.0,90894.0,0.01100182]
[1767485071274,0.00644413,90900.0,90894.0,0.05618005]
[1767485071483,0.00644413,90900.0,90895.0,0.05544963]
[1767485071734,0.01100122,90899.0,90895.0,0.04517823]
[1767485072026,0.00644413,90900.0,90896.0,0.05890421]
[1767485072374,0.01100097,90901.0,90896.0,0.05890421]
[1767485072576,0.02212,90907.0,90901.0,0.000999]
[1767485072818,0.01099916,90916.0,90910.0,0.04790263]
[1767485073027,0.01099916,90916.0,90911.0,0.01099976]
[1767485073427,0.07711904,90917.0,90912.0,0.01099964]
[1767485074062,0.07711904,90917.0,90912.0,0.01135702]
[1767485074208,0.01099916,90916.0,90912.0,0.00035738]
[1767485074835,0.04593673,90915.0,90909.0,0.02201195]
[1767485075040,0.03311904,90917.0,90913.0,0.01099952]
[1767485075369,0.02212,90917.0,90913.0,0.04790263]
[1767485075552,0.03311904,90917.0,90913.0,0.04790263]
[1767485075956,0.01099916,90916.0,90913.0,0.04790263]
[1767485076265,0.04480519,90923.0,90910.0,0.01099989]
[1767485076266,0.0004628,90948.0,90920.0,0.01099868]
[1767485076422,0.05498608,90933.0,90926.0,0.01099795]
[1767485076827,0.00049855,90927.0,90926.0,0.01099795]
[1767485077236,0.00049855,90927.0,90924.0,0.02212]
[1767485077429,0.01099783,90927.0,90924.0,0.02212]
[1767485077961,0.01099734,90931.0,90927.0,0.000999]
[1767485078302,0.04593673,90929.0,90925.0,0.01099807]
[1767485078428,0.04593673,90929.0,90924.0,0.03311819]
[1767485078833,0.04593673,90927.0,90924.0,0.03311819]
[1767485079036,0.04493773,90927.0,90924.0,0.03311819]
[1767485079253,0.04484952,90927.0,90924.0,0.02212]
[1767485079450,0.01099771,90928.0,90924.0,0.02212]
[1767485080670,0.01099771,90928.0,90924.0,0.03311819]
[1767485080871,0.01099759,90929.0,90924.0,0.03311819]
[1767485081091,0.01099747,90930.0,90925.0,0.01099807]
[1767485081297,0.01099734,90931.0,90926.0,0.01099795]
[1767485081494,0.01099747,90930.0,90925.0,0.02308335]
[1767485081709,0.01876722,90932.0,90925.0,0.02308335]
[1767485082186,0.01876722,90932.0,90926.0,0.01099795]
[1767485082536,0.00777,90932.0,90928.0,0.01208528]
[1767485082687,0.00777,90932.0,90929.0,0.01099759]
[1767485082688,0.04593673,90931.0,90929.0,0.01099759]
[1767485082904,0.00777,90932.0,90929.0,0.01598554]
[1767485083265,0.00777,90932.0,90929.0,0.02698313]
[1767485083420,0.00777,90932.0,90929.0,0.04790263]
[1767485083620,0.01099686,90935.0,90931.0,0.04790263]
[1767485083851,0.01099686,90935.0,90926.0,0.01099795]
[1767485083852,0.01099783,90927.0,90923.0,0.01099831]
[1767485084015,0.01099783,90927.0,90919.0,0.0109988]
[1767485084016,0.01099783,90927.0,90922.0,0.05890106]
[1767485084388,0.01099771,90928.0,90922.0,0.01099843]
[1767485084599,0.01099771,90928.0,90921.0,0.01099855]
[1767485084600,0.05693468,90926.0,90921.0,0.01099855]
[1767485084798,0.01099819,90924.0,90920.0,0.02212]
[1767485084990,0.01099819,90924.0,90919.0,0.0109988]
[1767485084991,0.01099819,90924.0,90921.0,0.02212]
[1767485085425,0.01099795,90926.0,90921.0,0.03311855]
[1767485086059,0.01099783,90927.0,90921.0,0.06599128]
[1767485086333,0.01099795,90926.0,90922.0,0.01099843]
[1767485086565,0.01099771,90928.0,90924.0,0.01099819]
[1767485086795,0.05499027,90926.0,90917.0,0.01099904]
[1767485087007,0.054994,90919.0,90911.0,0.01099976]
[1767485087239,0.054994,90919.0,90905.0,0.2200075]
[1767485087240,0.04593673,90921.0,90914.0,0.05499665]
[1767485087449,0.04593673,90921.0,90913.0,0.06300147]
[1767485087450,0.01099855,90921.0,90913.0,0.06300147]
[1767485087612,0.01099855,90921.0,90913.0,0.06335986]
[1767485087817,0.01099783,90927.0,90919.0,0.0109988]
[1767485087985,0.01099783,90927.0,90922.0,0.01099843]
[1767485088187,0.01099783,90927.0,90921.0,0.01199755]
[1767485088188,0.01099795,90926.0,90921.0,0.01199755]
[1767485088387,0.01099795,90926.0,90921.0,0.01099855]
[1767485088627,0.01099795,90926.0,90920.0,0.06599208]
[1767485088628,0.01099795,90926.0,90920.0,0.06599192]
[1767485088833,0.01099807,90925.0,90920.0,0.01099868]
[1767485089035,0.01099868,90920.0,90914.0,0.0109994]
[1767485089238,0.01099819,90924.0,90916.0,0.01099916]
[1767485089239,0.01099831,90923.0,90916.0,0.01099916]
[1767485089396,0.01099868,90920.0,90915.0,0.01099928]
[1767485089596,0.01099868,90920.0,90916.0,0.01099916]
[1767485090114,0.01099868,90920.0,90915.0,0.01099928]
[1767485090497,0.01099843,90922.0,90918.0,0.01099892]
[1767485090695,0.01099843,90922.0,90917.0,0.01099904]
[1767485090918,0.01099855,90921.0,90916.0,0.01099916]
[1767485091119,0.01099868,90920.0,90915.0,0.01099928]
[1767485091351,0.06598827,90926.0,90915.0,0.01099928]
[1767485091582,0.01099855,90921.0,90917.0,0.01099904]
[1767485091755,0.01099855,90921.0,90916.0,0.01099916]
[1767485092371,0.01099843,90922.0,90916.0,0.01099916]
[1767485092595,0.01099831,90923.0,90917.0,0.01099904]
[1767485092789,0.01099843,90922.0,90917.0,0.01099904]
[1767485092989,0.01099831,90923.0,90918.0,0.01099892]
[1767485093291,0.01099892,90918.0,90913.0,0.00035839]
[1767485093491,0.01099868,90920.0,90914.0,0.0109994]
[1767485093806,0.0004587,90915.0,90914.0,0.0109994]
[1767485094027,0.01099855,90921.0,90915.0,0.011089]
[1767485094232,0.01099855,90921.0,90917.0,0.01099904]
[1767485094540,0.01099843,90922.0,90916.0,0.01099916]
[1767485094719,0.01099843,90922.0,90918.0,0.01099892]
[1767485094924,0.01099843,90922.0,90917.0,0.01099904]
[1767485095127,0.03307843,90922.0,90917.0,0.01099904]
[1767485095424,0.01099868,90920.0,90916.0,0.01099916]
[1767485095666,0.01099855,90921.0,90917.0,0.01099904]
[1767485095782,0.000369,90917.0,90915.0,0.05890191]
[1767485096190,0.01099868,90920.0,90915.0,0.05890191]
[1767485096390,0.01099868,90920.0,90915.0,0.04790263]
[1767485096610,0.0109988,90919.0,90915.0,0.04790263]
[1767485096911,0.01099855,90921.0,90915.0,0.05890191]
[1767485097225,0.01099855,90921.0,90916.0,0.05890179]
[1767485097789,0.01099868,90920.0,90915.0,0.06962714]
[1767485098831,0.0109988,90919.0,90915.0,0.05825886]
[1767485099049,0.05499642,90915.0,90913.0,0.00035839]
[1767485099225,0.01100013,90908.0,90902.0,0.01100085]
[1767485099428,0.01100061,90904.0,90899.0,0.07658432]
[1767485099628,0.00035762,90908.0,90891.0,0.05307049]
[1767485099629,0.02208,90907.0,90894.0,0.04790263]
[1767485099850,0.01100158,90896.0,90894.0,0.04790263]
[1767485100073,0.01100146,90897.0,90892.0,0.04687896]
[1767485100398,0.01100146,90897.0,90891.0,0.05307049]
[1767485100399,0.01100182,90894.0,90891.0,0.05307049]
[1767485100527,0.01100122,90899.0,90892.0,0.04687896]
[1767485100730,0.0110011,90900.0,90893.0,0.04741409]
[1767485100929,0.01100049,90905.0,90895.0,0.02221403]
[1767485101131,0.01100037,90906.0,90901.0,0.01100097]
[1767485101356,0.01135775,90908.0,90902.0,0.01100085]
[1767485101598,0.02208,90912.0,90907.0,0.01100025]
[1767485101599,0.03307964,90912.0,90907.0,0.01100025]
[1767485101814,0.03307964,90912.0,90907.0,0.0110476]
[1767485102014,0.01099989,90910.0,90907.0,4.735e-05]
[1767485102397,0.0494907,90910.0,90905.0,0.01100049]
[1767485102620,0.0494907,90910.0,90904.0,0.01100061]
[1767485102621,0.06049059,90910.0,90904.0,0.01100061]
[1767485102820,0.01105889,90910.0,90904.0,0.01100061]
[1767485103539,5.9e-05,90910.0,90905.0,0.01100049]
[1767485104033,0.01099928,90915.0,90910.0,0.01099989]
[1767485104235,0.0109994,90914.0,90910.0,6.733e-05]
[1767485104635,0.01099952,90913.0,90910.0,6.733e-05]
[1767485105415,0.0109994,90914.0,90910.0,6.733e-05]
[1767485105618,0.01099952,90913.0,90910.0,6.733e-05]
[1767485106050,0.0109994,90914.0,90910.0,6.733e-05]
[1767485106407,0.01099952,90913.0,90910.0,0.00047883]
[1767485106607,0.02212,90916.0,90912.0,0.01099964]
[1767485106804,0.02212,90916.0,90912.0,0.01095555]
[1767485107250,0.03311916,90916.0,90910.0,0.01147872]
[1767485107429,0.03311916,90916.0,90911.0,0.01099976]
[1767485107764,0.03311843,90922.0,90914.0,0.0109994]
[1767485108481,0.02212,90922.0,90919.0,0.0109988]
[1767485108828,0.0494907,90921.0,90914.0,0.0109994]
[1767485109245,0.0494907,90921.0,90919.0,0.0109988]
[1767485109447,0.02212,90922.0,90919.0,0.0109988]
[1767485110031,0.02212,90922.0,90917.0,0.01099904]
[1767485110032,0.01099855,90921.0,90917.0,0.057878]
[1767485110277,0.000999,90919.0,90917.0,0.057878]
[1767485110433,0.000999,90919.0,90917.0,0.04687896]
[1767485110770,0.01099855,90921.0,90916.0,0.01099916]
[1767485110951,0.01099855,90921.0,90917.0,0.057878]
[1767485111148,0.01099855,90921.0,90917.0,0.05783391]
[1767485112217,0.01099855,90921.0,90917.0,0.04687896]
[1767485112341,0.01099868,90920.0,90915.0,0.01099928]
[1767485112541,0.0109988,90919.0,90914.0,0.04687896]
[1767485112969,0.0109988,90919.0,90914.0,0.05787836]
[1767485113379,0.0109988,90919.0,90914.0,0.05687936]
[1767485113584,0.01099892,90918.0,90914.0,0.04587996]
[1767485113814,0.01099892,90918.0,90914.0,0.05687936]
[1767485114111,0.0109988,90919.0,90914.0,0.04587996]
[1767485114315,0.01099904,90917.0,90914.0,0.04587996]
[1767485114522,0.01099892,90918.0,90914.0,0.04587996]
[1767485114888,0.0109988,90919.0,90914.0,0.05687936]
[1767485115091,0.01099892,90918.0,90914.0,0.05687936]
[1767485115507,0.02212,90922.0,90917.0,0.057878]
[1767485115706,0.02212,90922.0,90919.0,0.0107124]
[1767485115913,0.02212,90922.0,90919.0,0.01066719]
[1767485116971,0.02212,90922.0,90918.0,0.01599307]
[1767485117479,0.02212,90922.0,90917.0,0.06599408]
[1767485117848,0.00803078,90928.0,90922.0,0.01099843]
[1767485118059,0.02208,90928.0,90927.0,0.01099783]
[1767485118250,0.02208,90928.0,90927.0,0.01095109]
[1767485118908,0.01099674,90936.0,90930.0,0.01099747]
[1767485119058,0.01099674,90936.0,90932.0,0.01099722]
[1767485119256,0.01099674,90936.0,90931.0,0.01099734]
[1767485119458,0.01099662,90937.0,90932.0,0.01099722]
[1767485119706,0.01099674,90936.0,90931.0,0.01099734]
[1767485119911,0.15449087,90938.0,90933.0,0.04687896]
[1767485120059,0.01099662,90937.0,90933.0,0.04587996]
[1767485120700,0.02208,90938.0,90937.0,0.04787796]
[1767485120856,0.02208,90938.0,90937.0,0.04687896]
[1767485121063,0.0330765,90938.0,90934.0,0.04687896]
[1767485122472,0.0330765,90938.0,90934.0,0.05787594]
[1767485122674,0.0330765,90938.0,90934.0,0.04687896]
[1767485122883,0.04696639,90945.0,90933.0,0.0109971]
[1767485122884,0.0001514,90976.0,90956.0,0.01089431]
[1767485123104,0.04770817,90978.0,90976.0,0.0109919]
[1767485123105,0.19110081,90978.0,90976.0,0.0109919]
[1767485123357,28.14648662,91000.0,90977.0,0.09042278]
[1767485123358,26.99073358,91000.0,90977.0,0.09042278]
[1767485123528,26.99073358,91000.0,90978.0,0.05227137]
[1767485123529,0.00264693,90999.0,90978.0,0.05227137]
[1767485123888,24.83201884,91000.0,90998.0,0.04994576]
[1767485124159,23.66580787,91000.0,90999.0,0.06608]
[1767485124348,22.63433767,91000.0,90999.0,0.14640955]
[1767485124557,16.59710649,91000.0,90999.0,0.1584095]
[1767485124675,15.21234115,91000.0,90999.0,0.25824215]
[1767485124874,13.46832509,91000.0,90999.0,0.27381057]
[1767485125074,12.17919553,91000.0,90999.0,0.28033215]
[1767485125273,3.98597214,91000.0,90999.0,0.24034408]
[1767485125488,0.03,91093.0,91080.0,0.2]
[1767485125730,0.26380149,91140.0,91136.0,0.23769146]